fUST/lending_fUST_20240414
["ID","MTS","AMOUNT","RATE_DAILY","PERIOD"]
[322524324,1713040234698,-153.21439812,0.0006268,120]
[322524325,1713040234707,-153.21439812,0.00062723,120]
[322524326,1713040234717,-162.4543637,0.00063002,120]
[322524327,1713040234728,-158.72190416,0.00063283,120]
[322524328,1713040234737,-158.72190416,0.00063896,120]
[322524329,1713040234747,-153.21439812,0.00064706,120]
[322524330,1713040234757,-153.85243649,0.00065135,120]
[322524331,1713040234767,-161.870922,0.00065282,2]
[322524332,1713040234776,-153.85243649,0.00065535,120]
[322524333,1713040234786,-473.8694383,0.000669,120]
[322524334,1713040234795,-157.619305,0.00067248,2]
[322524335,1713040234807,-162.4543637,0.00067368,120]
[322524336,1713040234818,-153.85243649,0.00067486,120]
[322524337,1713040234828,-153.21439812,0.00068715,120]
[322524338,1713040234837,-153.21439812,0.00068879,120]
[322524339,1713040234847,-154.70605849,0.00069,7]
[322524340,1713040234856,-153.21439812,0.00069469,120]
[322524341,1713040234866,-150.59339783,0.00069753,2]
[322524342,1713040234875,-3874.53441545,0.0007,120]
[322524343,1713040234885,-162.4543637,0.00071548,120]
[322524344,1713040234894,-153.85243649,0.00071864,120]
[322524345,1713040234904,-153.85243657,0.00072513,120]
[322524346,1713040234914,-153.21439812,0.00072613,120]
[322524347,1713040234923,-153.21439812,0.00073366,120]
[322524348,1713040234932,-179.39262735,0.00073656,5]
[322524349,1713040234941,-162.4543637,0.00074406,120]
[322524350,1713040234951,-153.21439824,0.0007493,120]
[322524351,1713040234961,-162.4543637,0.00075458,120]
[322524352,1713040234970,-158.72190418,0.00075855,120]
[322524353,1713040234980,-162.4543637,0.00075916,120]
[322524354,1713040234989,-175.28639,0.00077004,120]
[322524355,1713040234998,-157.619305,0.0007721,120]
[322524356,1713040235008,-162.4543637,0.00078916,120]
[322524357,1713040235018,-164.424591,0.00082192,120]
[322524358,1713040235027,-157.619305,0.00087173,120]
[322524359,1713040235037,-7470.88179947,0.0009,2]
[322524360,1713040235047,-1674.89655974,0.00096,120]
[322524361,1713040235063,-10000.0,0.00096,120]
[322524362,1713040235073,-10835.37258338,0.00096,120]
[322524363,1713040235084,-1672.0,0.00097,120]
[322524364,1713040235094,-10000.0,0.00097,120]
[322524365,1713040235104,-10834.0,0.00097,120]
[322524366,1713040235115,-653.38264775,0.00097,120]
[322524367,1713040235126,-157.619305,0.00097136,120]
[322524368,1713040235136,-1672.0,0.00098,120]
[322524369,1713040235147,-10000.0,0.00098,120]
[322524370,1713040235157,-10834.0,0.00098,120]
[322524371,1713040235167,-653.0,0.00098,120]
[322524372,1713040235177,-500.0,0.0009863,120]
[322524373,1713040235187,-2868.0,0.000989,120]
[322524374,1713040235197,-175.28639,0.00099379,120]
[322524375,1713040235208,-161.870922,0.00099597,2]
[322524376,1713040235218,-14813.5002,0.000999,120]
[322524377,1713040235230,-157.619305,0.00107098,120]
[322524378,1713040235240,-164.424591,0.00109589,120]
[322524379,1713040235252,-2102.91407293,0.00111,111]
[322524380,1713040235264,-157.619305,0.00117061,120]
[322524381,1713040235275,-175.28639,0.00121753,120]
[322524382,1713040235286,-157.619305,0.00127024,120]
[322524383,1713040235296,-161.870922,0.00133912,2]
[322524384,1713040235310,-157.619305,0.00136986,120]
[322524385,1713040235321,-164.424591,0.00136986,120]
[322524386,1713040235332,-175.28639,0.00144127,120]
[322524387,1713040235344,-1469.57471687,0.00148584,7]
[322524388,1713040235356,-1469.57471687,0.00153584,7]
[322524389,1713040235374,-1469.57471687,0.00158584,7]
[322524390,1713040235386,-169.452554,0.00166012,2]
[322524391,1713040235397,-175.28639,0.00166502,120]
[322524392,1713040235410,-161.870922,0.00168227,2]
[322524393,1713040235421,-173.61086953,0.00193,120]
[322524394,1713040235433,-4310.7617466,0.0021,120]
[322524395,1713040235443,-200.04680753,0.0021,120]
[322524396,1713040235455,-4310.7617466,0.0022,120]
[322524397,1713040235470,-200.04680753,0.0022,120]
[322524398,1713040235481,-4310.7617466,0.0023,120]
[322524399,1713040235493,-200.04680753,0.0023,120]
[322524400,1713040235504,-500.0,0.00235616,120]
[322524401,1713040235516,-4310.7617466,0.0024,120]
[322524402,1713040235527,-200.04680753,0.0024,120]
[322524403,1713040235538,-4310.7617466,0.0025,120]
[322524404,1713040235549,-200.04680753,0.0025,120]
[322524405,1713040235563,-4310.7617466,0.0026,120]
[322524406,1713040235574,-200.04680753,0.0026,120]
[322524407,1713040235585,-520.0,0.0026989,120]
[322524408,1713040235596,-4310.7617466,0.0027,120]
[322524409,1713040235610,-200.04680753,0.0027,120]
[322524410,1713040235621,-2040.22798588,0.00273872,30]
[322524411,1713040235632,-500.0,0.00273972,120]
[322524412,1713040235643,-500.0,0.00273972,120]
[322524413,1713040235654,-500.0,0.00273972,120]
[322524414,1713040235665,-502.01147874,0.00273972,120]
[322524415,1713040235676,-406.51692017,0.00273972,120]
[322524416,1713040235687,-500.0,0.00273972,120]
[322524417,1713040235698,-500.0,0.00273972,120]
[322524418,1713040235709,-560.20467555,0.00273972,120]
[322524419,1713040235720,-500.0,0.00273972,120]
[322524420,1713040235730,-1000.0,0.00273972,120]
[322524421,1713040235741,-500.0,0.00273972,120]
[322524422,1713040235752,-500.0,0.00273972,120]
[322524423,1713040235762,-489.66683078,0.00273972,120]
[322524424,1713040235773,-488.56291406,0.00273972,120]
[322524425,1713040235784,-500.0,0.00273972,120]
[322524426,1713040235794,-500.0,0.00273972,120]
[322524427,1713040235809,-500.0,0.00273972,120]
[322524428,1713040235820,-177.22362244,0.00273972,120]
[322524429,1713040235830,-500.0,0.00273972,120]
[322524430,1713040235840,-403.0062088,0.00273972,120]
[322524431,1713040235853,-500.0,0.00273972,120]
[322524432,1713040235863,-500.0,0.00273972,120]
[322524433,1713040235874,-241.66120892,0.00273972,120]
[322524434,1713040235885,-300.0,0.00273972,7]
[322524435,1713040235895,-500.0,0.00273972,120]
[322524436,1713040235905,-500.0,0.00273972,120]
[322524437,1713040235916,-500.0,0.00273972,120]
[322524438,1713040235925,-514.97539484,0.00273972,120]
[322524439,1713040235936,-500.0,0.00273972,120]
[322524440,1713040235946,-579.86036251,0.00273972,120]
[322524441,1713040235956,-500.0,0.00273972,120]
[322524442,1713040235967,-530.74470927,0.00273972,120]
[322524443,1713040235978,-500.0,0.00273972,120]
[322524444,1713040235987,-500.0,0.00273972,120]
[322524445,1713040235998,-328.19783909,0.00273972,120]
[322524446,1713040236008,-501.7581318,0.00273972,120]
[322524447,1713040236018,-500.0,0.00273972,120]
[322524448,1713040236028,-412.49906291,0.00273972,120]
[322524449,1713040236038,-500.41206673,0.00273972,120]
[322524450,1713040236052,-500.0,0.00273972,120]
[322524451,1713040236066,-500.0,0.00273972,120]
[322524452,1713040236077,-500.0,0.00273972,120]
[322524453,1713040236087,-500.49675883,0.00273972,120]
[322524454,1713040236098,-500.0,0.00273972,120]
[322524455,1713040236108,-500.0,0.00273972,120]
[322524456,1713040236118,-500.0,0.00273972,120]
[322524457,1713040236129,-500.0,0.00273972,120]
[322524458,1713040236139,-253.51348847,0.00273972,120]
[322524459,1713040236149,-500.0,0.00273972,120]
[322524460,1713040236159,-500.0,0.00273972,120]
[322524461,1713040236169,-500.0,0.00273972,120]
[322524462,1713040236180,-500.0,0.00273972,120]
[322524463,1713040236192,-500.0,0.00273972,7]
[322524464,1713040236202,-602.71514204,0.00273972,120]
[322524465,1713040236213,-500.0,0.00273972,120]
[322524466,1713040236224,-500.0,0.00273972,120]
[322524467,1713040236235,-189.90271438,0.00273972,120]
[322524468,1713040236245,-500.0,0.00273972,120]
[322524469,1713040236255,-500.0,0.00273972,120]
[322524470,1713040236265,-500.0,0.00273972,120]
[322524471,1713040236275,-500.0,0.00273972,120]
[322524472,1713040236285,-500.0,0.00273972,120]
[322524473,1713040236295,-500.0,0.00273972,120]
[322524474,1713040236308,-500.0,0.00273972,120]
[322524475,1713040236320,-508.00749955,0.00273972,120]
[322524476,1713040236334,-207.40801537,0.00273972,120]
[322524477,1713040236344,-500.0,0.00273972,120]
[322524478,1713040236354,-500.0,0.00273972,120]
[322524479,1713040236371,-500.0,0.00273972,120]
[322524480,1713040236382,-500.0,0.00273972,120]
[322524481,1713040236393,-500.0,0.00273972,120]
[322524482,1713040236404,-500.0,0.00273972,120]
[322524483,1713040236415,-239.03280584,0.00273972,120]
[322524484,1713040236424,-500.0,0.00273972,120]
[322524485,1713040236434,-500.0,0.00273972,120]
[322524486,1713040236444,-500.0,0.00273972,120]
[322524487,1713040236454,-500.0,0.00273972,120]
[322524488,1713040236465,-500.0,0.00273972,120]
[322524489,1713040236475,-561.57823212,0.00273972,120]
[322524490,1713040236486,-500.0,0.00273972,120]
[322524491,1713040236495,-500.0,0.00273972,120]
[322524492,1713040236506,-500.0,0.00273972,120]
[322524493,1713040236517,-500.0,0.00273972,120]
[322524494,1713040236528,-500.0,0.00273972,120]
[322524495,1713040236539,-500.0,0.00273972,120]
[322524496,1713040236549,-500.0,0.00273972,120]
[322524497,1713040236563,-500.0,0.00273972,120]
[322524498,1713040236573,-500.0,0.00273972,120]
[322524499,1713040236587,-500.0,0.00273972,120]
[322524500,1713040236597,-502.24177056,0.00273972,120]
[322524501,1713040236608,-500.0,0.00273972,120]
[322524502,1713040236619,-500.0,0.00273972,120]
[322524503,1713040236629,-500.0,0.00273972,120]
[322524504,1713040236639,-500.0,0.00273972,120]
[322524505,1713040236648,-500.0,0.00273972,120]
[322524506,1713040236659,-500.0,0.00273972,120]
[322524507,1713040236669,-505.25895781,0.00273972,120]
[322524508,1713040236681,-500.0,0.00273972,120]
[322524509,1713040236692,-500.0,0.00273972,120]
[322524510,1713040236703,-500.0,0.00273972,120]
[322524511,1713040236714,-500.0,0.00273972,120]
[322524512,1713040236725,-500.0,0.00273972,120]
[322524513,1713040236736,-500.0,0.00273972,120]
[322524514,1713040236747,-500.0,0.00273972,120]
[322524515,1713040236757,-500.0,0.00273972,120]
[322524516,1713040236767,-500.0,0.00273972,120]
[322524517,1713040236777,-188.65759587,0.00273972,20]
[322524518,1713040236787,-500.0,0.00273972,120]
[322524519,1713040236797,-500.0,0.00273972,120]
[322524520,1713040236813,-500.0,0.00273972,120]
[322524521,1713040236823,-509.38981987,0.00273972,120]
[322524522,1713040236833,-500.0,0.00273972,120]
[322524523,1713040236844,-500.0,0.00273972,120]
[322524524,1713040236853,-500.0,0.00273972,120]
[322524525,1713040236863,-500.0,0.00273972,120]
[322524526,1713040236873,-500.0,0.00273972,120]
[322524527,1713040236883,-500.0,0.00273972,120]
[322524528,1713040236893,-500.0,0.00273972,120]
[322524529,1713040236902,-500.0,0.00273972,120]
[322524530,1713040236913,-500.87977262,0.00273972,120]
[322524531,1713040236922,-500.0,0.00273972,120]
[322524532,1713040236932,-500.0,0.00273972,120]
[322524533,1713040236942,-500.0,0.00273972,120]
[322524534,1713040236952,-500.0,0.00273972,120]
[322524535,1713040236962,-500.0,0.00273972,120]
[322524536,1713040236972,-500.0,0.00273972,120]
[322524537,1713040236982,-506.97942775,0.00273972,120]
[322524538,1713040237080,-500.0,0.00273972,120]
[322524539,1713040237090,-500.0,0.00273972,120]
[322524540,1713040237100,-505.09467964,0.00273972,120]
[322524541,1713040237110,-500.0,0.00273972,120]
[322524542,1713040237120,-500.0,0.00273972,120]
[322524543,1713040237129,-500.0,0.00273972,120]
[322524544,1713040237139,-500.0,0.00273972,120]
[322524545,1713040237149,-500.0,0.00273972,120]
[322524546,1713040237159,-500.0,0.00273972,120]
[322524547,1713040237169,-500.0,0.00273972,120]
[322524548,1713040237179,-500.0,0.00273972,120]
[322524549,1713040237190,-500.0,0.00273972,120]
[322524550,1713040237200,-500.0,0.00273972,120]
[322524551,1713040237211,-500.0,0.00273972,120]
[322524552,1713040237222,-398.49582361,0.00273972,120]
[322524553,1713040237233,-171.86384382,0.00273972,120]
[322524554,1713040237243,-464.53611299,0.00273972,120]
[322524555,1713040237254,-500.0,0.00273972,120]
[322524556,1713040237264,-500.0,0.00273972,120]
[322524557,1713040237274,-500.0,0.00273972,120]
[322524558,1713040237285,-500.0,0.00273972,120]
[322524559,1713040237299,-500.0,0.00273972,120]
[322524560,1713040237317,-500.0,0.00273972,120]
[322524561,1713040237328,-500.0,0.00273972,120]
[322524562,1713040237339,-500.0,0.00273972,120]
[322524563,1713040237351,-500.0,0.00273972,120]
[322524564,1713040237363,-500.0,0.00273972,120]
[322524565,1713040237379,-667.02,0.00273972,120]
[322524566,1713040237390,-667.02,0.00273972,120]
[322524567,1713040237401,-500.0,0.00273972,120]
[322524568,1713040237414,-667.02,0.00273972,120]
[322524569,1713040237425,-667.02,0.00273972,120]
[322524570,1713040237436,-500.0,0.00273972,120]
[322524571,1713040237447,-500.0,0.00273972,120]
[322524572,1713040237458,-667.02,0.00273972,120]
[322524573,1713040237469,-667.02,0.00273972,120]
[322524574,1713040237479,-667.02,0.00273972,120]
[322524575,1713040237490,-667.02,0.00273972,120]
[322524576,1713040237501,-667.02,0.00273972,120]
[322524577,1713040237512,-667.02,0.00273972,120]
[322524578,1713040237524,-667.02,0.00273972,120]
[322524579,1713040237534,-667.02,0.00273972,120]
[322524580,1713040237548,-667.02,0.00273972,120]
[322524581,1713040237565,-667.02,0.00273972,120]
[322524582,1713040237576,-500.0,0.00273972,120]
[322524583,1713040237588,-667.02,0.00273972,120]
[322524584,1713040237598,-667.02,0.00273972,120]
[322524585,1713040237611,-667.02,0.00273972,120]
[322524586,1713040237622,-667.02,0.00273972,120]
[322524587,1713040237633,-667.02,0.00273972,120]
[322524588,1713040237644,-667.02,0.00273972,120]
[322524589,1713040237655,-667.02,0.00273972,120]
[322524590,1713040237666,-667.02,0.00273972,120]
[322524591,1713040237676,-667.02,0.00273972,120]
[322524592,1713040237687,-500.0,0.00273972,120]
[322524593,1713040237697,-667.14933116,0.00273972,120]
[322524594,1713040237707,-500.0,0.00273972,120]
[322524596,1713040237716,-501.35394877,0.00273972,120]
[322524597,1713040237726,-500.0,0.00273972,120]
[322524598,1713040237736,-500.0,0.00273972,120]
[322524599,1713040237746,-500.0,0.00273972,120]
[322524600,1713040237756,-500.0,0.00273972,120]
[322524601,1713040237765,-500.00025,0.00273972,120]
[322524602,1713040237774,-500.0,0.00273972,120]
[322524603,1713040237783,-500.0,0.00273972,120]
[322524609,1713040237793,-500.0,0.00273972,120]
[322524616,1713040237803,-606.69573565,0.00273972,120]
[322524620,1713040237818,-500.0,0.00273972,120]
[322524628,1713040237828,-500.0,0.00273972,120]
[322524633,1713040237837,-502.33667691,0.00273972,120]
[322524640,1713040237846,-500.0,0.00273972,120]
[322524645,1713040237856,-500.0,0.00273972,120]
[322524649,1713040237864,-500.0,0.00273972,120]
[322524654,1713040237874,-500.0,0.00273972,120]
[322524659,1713040237885,-500.0,0.00273972,120]
[322524662,1713040237895,-500.0,0.00273972,120]
[322524665,1713040237905,-500.0,0.00273972,120]
[322524667,1713040237918,-500.0,0.00273972,120]
[322524672,1713040237929,-500.0,0.00273972,120]
[322524674,1713040237940,-500.0,0.00273972,120]
[322524677,1713040237951,-501.09961894,0.00273972,2]
[322524679,1713040237961,-500.0,0.00273972,120]
[322524682,1713040237971,-500.0,0.00273972,120]
[322524685,1713040237981,-504.58159925,0.00273972,120]
[322524689,1713040237992,-500.0,0.00273972,120]
[322524692,1713040238003,-500.0,0.00273972,120]
[322524694,1713040238014,-500.0,0.00273972,120]
[322524696,1713040238024,-500.0,0.00273972,120]
[322524699,1713040238034,-500.0,0.00273972,120]
[322524701,1713040238043,-500.0,0.00273972,120]
[322524704,1713040238053,-500.0,0.00273972,120]
[322524708,1713040238068,-500.0,0.00273972,120]
[322524710,1713040238080,-500.0,0.00273972,120]
[322524713,1713040238092,-500.0,0.00273972,120]
[322524715,1713040238102,-500.0,0.00273972,120]
[322524716,1713040238112,-500.0,0.00273972,120]
[322524718,1713040238122,-500.0,0.00273972,120]
[322524719,1713040238132,-500.0,0.00273972,120]
[322524720,1713040238142,-500.0,0.00273972,120]
[322524721,1713040238152,-500.0,0.00273972,120]
[322524722,1713040238161,-500.0,0.00273972,120]
[322524723,1713040238171,-508.00708882,0.00273972,120]
[322524724,1713040238180,-500.0,0.00273972,120]
[322524725,1713040238189,-500.78951343,0.00273972,120]
[322524726,1713040238199,-500.0,0.00273972,120]
[322524727,1713040238209,-500.0,0.00273972,120]
[322524728,1713040238218,-500.0,0.00273972,120]
[322524729,1713040238228,-500.0,0.00273972,120]
[322524730,1713040238238,-500.0,0.00273972,120]
[322524731,1713040238247,-500.0,0.00273972,120]
[322524732,1713040238256,-500.0,0.00273972,120]
[322524733,1713040238266,-500.0,0.00273972,65]
[322524734,1713040238275,-500.0,0.00273972,120]
[322524735,1713040238285,-501.22601934,0.00273972,120]
[322524736,1713040238294,-500.0,0.00273972,120]
[322524737,1713040238304,-500.0,0.00273972,120]
[322524738,1713040238319,-500.0,0.00273972,120]
[322524739,1713040238329,-501.69418534,0.00273972,120]
[322524740,1713040238339,-647.82821017,0.00273972,120]
[322524741,1713040238349,-457.91732347,0.00273972,120]
[322524742,1713040238360,-500.0,0.00273972,120]
[322524743,1713040238374,-504.67999528,0.00273972,120]
[322524744,1713040238384,-500.0,0.00273972,120]
[322524745,1713040238394,-305.80802856,0.00273972,120]
[322524746,1713040238404,-473.23128437,0.00273972,120]
[322524747,1713040238417,-298.55925014,0.00273972,120]
[322524748,1713040238428,-500.0,0.00273972,120]
[322524749,1713040238441,-500.0,0.00273972,120]
[322524750,1713040238453,-500.0,0.00273972,120]
[322524751,1713040238463,-503.91738435,0.00273972,120]
[322524752,1713040238473,-500.0,0.00273972,120]
[322524753,1713040238483,-500.0,0.00273972,120]
[322524755,1713040238493,-500.0,0.00273972,120]
[322524757,1713040238502,-500.0,0.00273972,120]
[322524759,1713040238512,-500.0,0.00273972,120]
[322524761,1713040238523,-505.46404769,0.00273972,120]
[322524762,1713040238535,-500.0,0.00273972,120]
[322524763,1713040238546,-500.0,0.00273972,120]
[322524764,1713040238559,-500.0,0.00273972,120]
[322524766,1713040238570,-500.0,0.00273972,120]
[322524768,1713040238579,-500.0,0.00273972,120]
[322524770,1713040238589,-500.0,0.00273972,120]
[322524771,1713040238598,-500.0,0.00273972,120]
[322524772,1713040238608,-500.0,0.00273972,120]
[322524773,1713040238617,-500.0,0.00273972,120]
[322524774,1713040238627,-500.0,0.00273972,120]
[322524775,1713040238637,-500.0,0.00273972,120]
[322524776,1713040238646,-500.0,0.00273972,120]
[322524777,1713040238656,-500.0,0.00273972,120]
[322524778,1713040238666,-500.0,0.00273972,120]
[322524779,1713040238675,-500.0,0.00273972,120]
[322524780,1713040238685,-500.0,0.00273972,120]
[322524781,1713040238694,-500.0,0.00273972,7]
[322524782,1713040238704,-500.0,0.00273972,120]
[322524783,1713040238713,-500.0,0.00273972,120]
[322524784,1713040238726,-500.0,0.00273972,120]
[322524785,1713040238750,-500.0,0.00273972,120]
[322524786,1713040238760,-500.0,0.00273972,120]
[322524787,1713040238771,-199.40993867,0.00273972,120]
[322524788,1713040238781,-500.0,0.00273972,120]
[322524789,1713040238790,-500.0,0.00273972,120]
[322524790,1713040238800,-197.90314907,0.00273972,30]
[322524791,1713040238815,-500.0,0.00273972,120]
[322524792,1713040238825,-500.0,0.00273972,120]
[322524793,1713040238835,-500.0,0.00273972,120]
[322524794,1713040238845,-500.0,0.00273972,120]
[322524795,1713040238856,-500.0,0.00273972,120]
[322524796,1713040238866,-500.0,0.00273972,120]
[322524797,1713040238875,-500.0,0.00273972,120]
[322524798,1713040238885,-500.0,0.00273972,120]
[322524799,1713040238896,-514.40875621,0.00273972,120]
[322524800,1713040238905,-500.0,0.00273972,120]
[322524801,1713040238915,-500.0,0.00273972,120]
[322524802,1713040238925,-1139.74,0.00273972,120]
[322524803,1713040238934,-500.0,0.00273972,120]
[322524804,1713040238945,-500.0,0.00273972,120]
[322524805,1713040238955,-523.48574494,0.00273972,120]
[322524806,1713040238965,-500.0,0.00273972,120]
[322524807,1713040238975,-500.0,0.00273972,120]
[322524808,1713040238984,-500.0,0.00273972,120]
[322524809,1713040238994,-500.0,0.00273972,120]
[322524810,1713040239004,-1501.59,0.00273972,120]
[322524811,1713040239015,-1087.1,0.00273972,120]
[322524812,1713040239025,-707.28,0.00273972,120]
[322524813,1713040239035,-500.0,0.00273972,120]
[322524814,1713040239044,-500.0,0.00273972,120]
[322524815,1713040239054,-500.0,0.00273972,120]
[322524816,1713040239070,-552.27,0.00273972,120]
[322524817,1713040239079,-500.0,0.00273972,120]
[322524818,1713040239088,-500.0,0.00273972,120]
[322524819,1713040239097,-500.0,0.00273972,120]
[322524820,1713040239107,-500.0,0.00273972,120]
[322524821,1713040239116,-576.29,0.00273972,120]
[322524822,1713040239126,-555.9,0.00273972,120]
[322524823,1713040239135,-500.0,0.00273972,120]
[322524824,1713040239144,-500.0,0.00273972,120]
[322524825,1713040239154,-500.0,0.00273972,120]
[322524826,1713040239163,-500.0,0.00273972,120]
[322524827,1713040239174,-500.0,0.00273972,120]
[322524828,1713040239184,-502.53267137,0.00273972,120]
[322524829,1713040239194,-500.0,0.00273972,120]
[322524830,1713040239204,-500.0,0.00273972,120]
[322524831,1713040239214,-500.0,0.00273972,120]
[322524832,1713040239224,-500.0,0.00273972,120]
[322524833,1713040239234,-500.0,0.00273972,120]
[322524834,1713040239244,-500.0,0.00273972,120]
[322524835,1713040239253,-500.0,0.00273972,120]
[322524836,1713040239264,-512.87285513,0.00273972,120]
[322524837,1713040239273,-504.52437889,0.00273972,120]
[322524838,1713040239283,-500.0,0.00273972,120]
[322524839,1713040239292,-500.0,0.00273972,120]
[322524840,1713040239302,-500.0,0.00273972,120]
[322524841,1713040239314,-500.0,0.00273972,120]
[322524842,1713040239334,-929.29,0.00273972,120]
[322524843,1713040239344,-500.0,0.00273972,120]
[322524844,1713040239354,-500.0,0.00273972,120]
[322524845,1713040239368,-508.54822273,0.00273972,120]
[322524846,1713040239378,-500.0,0.00273972,120]
[322524847,1713040239387,-500.0,0.00273972,120]
[322524848,1713040239398,-500.0,0.00273972,120]
[322524849,1713040239410,-500.65378748,0.00273972,120]
[322524850,1713040239419,-344.22397351,0.00273972,120]
[322524851,1713040239429,-500.0,0.00273972,120]
[322524852,1713040239442,-500.0,0.00273972,120]
[322524853,1713040239452,-500.0,0.00273972,120]
[322524854,1713040239462,-505.69584585,0.00273972,120]
[322524855,1713040239472,-500.0,0.00273972,120]
[322524856,1713040239482,-500.0,0.00273972,120]
[322524857,1713040239492,-500.0,0.00273972,120]
[322524858,1713040239501,-644.83993658,0.00273972,120]
[322524859,1713040239511,-2500.0,0.00273972,120]
[322524860,1713040239521,-500.0,0.00273972,120]
[322524861,1713040239532,-500.0,0.00273972,120]
[322524862,1713040239542,-500.0,0.00273972,120]
[322524863,1713040239552,-500.0,0.00273972,120]
[322524864,1713040239565,-500.0,0.00273972,120]
[322524865,1713040239575,-500.0,0.00273972,60]
[322524866,1713040239662,-500.0,0.00273972,120]
[322524867,1713040239681,-500.0,0.00273972,120]
[322524868,1713040239692,-500.0,0.00273972,120]
[322524869,1713040239701,-500.0,0.00273972,120]
[322524870,1713040239712,-500.0,0.00273972,120]
[322524871,1713040239721,-218.86584983,0.00273972,120]
[322524872,1713040239731,-500.0,0.00273972,120]
[322524873,1713040239742,-500.0,0.00273972,120]
[322524874,1713040239751,-500.0,0.00273972,120]
[322524875,1713040239761,-500.0,0.00273972,120]
[322524876,1713040239770,-500.0,0.00273972,120]
[322524877,1713040239779,-500.0,0.00273972,120]
[322524878,1713040239789,-500.0,0.00273972,120]
[322524879,1713040239798,-500.0,0.00273972,120]
[322524880,1713040239809,-573.36029087,0.00273972,120]
[322524881,1713040239818,-500.0,0.00273972,120]
[322524882,1713040239829,-500.0,0.00273972,120]
[322524883,1713040239838,-500.0,0.00273972,120]
[322524884,1713040239847,-500.0,0.00273972,120]
[322524885,1713040239856,-500.0,0.00273972,7]
[322524886,1713040239866,-500.0,0.00273972,120]
[322524887,1713040239875,-845.7,0.00273972,120]
[322524888,1713040239884,-501.99942091,0.00273972,120]
[322524889,1713040239894,-308.49086059,0.00273972,120]
[322524890,1713040239903,-705.37,0.00273972,120]
[322524891,1713040239912,-500.0,0.00273972,120]
[322524892,1713040239921,-500.0,0.00273972,120]
[322524893,1713040239931,-502.44385136,0.00273972,120]
[322524894,1713040239941,-500.0,0.00273972,120]
[322524895,1713040239952,-500.0,0.00273972,120]
[322524897,1713040239963,-500.0,0.00273972,120]
[322524899,1713040239978,-500.0,0.00273972,120]
[322524900,1713040239990,-500.0,0.00273972,120]
[322524902,1713040240002,-500.0,0.00273972,120]
[322524904,1713040240014,-420.76768165,0.00273972,120]
[322524905,1713040240026,-500.0,0.00273972,120]
[322524907,1713040240039,-500.0,0.00273972,120]
[322524909,1713040240052,-221.02911687,0.00273972,120]
[322524911,1713040240068,-500.0,0.00273972,120]
[322524913,1713040240079,-500.0,0.00273972,120]
[322524915,1713040240089,-500.0,0.00273972,120]
[322524916,1713040240105,-500.0,0.00273972,120]
[322524918,1713040240118,-503.39893244,0.00273972,120]
[322524920,1713040240132,-500.0,0.00273972,120]
[322524922,1713040240145,-500.0,0.00273972,120]
[322524924,1713040240158,-500.0,0.00273972,120]
[322524925,1713040240169,-671.48,0.00273972,120]
[322524926,1713040240182,-500.0,0.00273972,120]
[322524927,1713040240193,-500.0,0.00273972,120]